bitfinex-derivatives/quotes_SOLF0:USTF0_20250404
["timestamp","ask_amount","ask_price","bid_price","bid_amount"]
[1743762707700,41.74453304,116.58,116.55,0.05726972]
[1743762708207,8.5796,116.57,116.55,0.05726972]
[1743762708511,41.74453304,116.58,116.55,0.05726972]
[1743762708807,8.5811,116.55,116.5,66.35400153]
[1743762709008,4.4577,116.56,116.49,329.28]
[1743762709205,8.5818,116.54,116.49,329.28]
[1743762709507,8.5818,116.54,116.45,41.66]
[1743762709708,4.4577,116.56,116.49,24.65400153]
[1743762709913,0.06570853,116.52,116.49,24.72012063]
[1743762710209,0.06570853,116.52,116.49,0.0599388]
[1743762711207,0.06570853,116.52,116.5,8.5839]
[1743762712411,0.06570853,116.52,116.49,0.0599388]
[1743762713413,8.5841,116.51,116.49,0.0599388]
[1743762713603,0.06570853,116.52,116.49,0.0599388]
[1743762713913,24.65400153,116.51,116.43,8.5892]
[1743762714104,50.1899,116.5,116.44,1.71762281]
[1743762714302,24.65400153,116.49,116.44,1.71762281]
[1743762714510,8.588,116.45,116.44,1.71762281]
[1743762715110,74.71400153,116.45,116.3,805.7872157]
[1743762715409,4.3421,116.44,116.37,8.5935]
[1743762715612,4.3421,116.44,116.36,24.65400153]
[1743762715807,45.8821,116.44,116.36,66.17400153]
[1743762716007,45.8821,116.44,116.38,8.5927]
[1743762716309,45.8821,116.44,116.36,66.17400153]
[1743762716310,0.06413633,116.41,116.39,0.05726339]
[1743762717710,8.65553633,116.41,116.39,0.05726339]
[1743762719113,8.5917,116.4,116.39,0.05726339]
[1743762719409,0.06413633,116.41,116.39,0.05726339]
[1743762719609,8.65543633,116.41,116.39,0.05726339]
[1743762720313,0.06413633,116.41,116.39,0.05726339]
[1743762720608,329.54,116.54,116.39,24.71126492]
[1743762720815,4.4209,116.49,116.43,24.65400153]
[1743762721015,4.4209,116.49,116.43,41.3]
[1743762721215,8.587,116.47,116.43,41.3]
[1743762721415,4.4209,116.49,116.43,41.3]
[1743762721811,0.05864267,116.47,116.45,0.06587284]
[1743762722416,8.64524267,116.47,116.45,0.06587284]
[1743762722609,0.05864267,116.47,116.45,0.06587284]
[1743762722805,0.05864267,116.47,116.39,65.91400153]
[1743762722806,41.31864267,116.47,116.39,65.91400153]
[1743762723011,41.26,116.47,116.39,41.26]
[1743762723315,41.26,116.47,116.37,395.45400153]
[1743762723518,41.26,116.47,116.39,24.65400153]
[1743762724014,0.05852098,116.44,116.42,8.64952827]
[1743762724317,0.05852098,116.44,116.42,0.05942827]
[1743762725909,8.5895,116.43,116.36,4.3532]
[1743762726112,8.5895,116.43,116.31,329.62]
[1743762726113,29.32140153,116.43,116.33,24.65400153]
[1743762726309,8.5922,116.4,116.33,24.65400153]
[1743762726715,41.18,116.4,116.32,4.7628]
[1743762726916,8.5937,116.38,116.35,8.595]
[1743762727214,0.06112181,116.37,116.35,0.0584209]
[1743762729011,8.65542181,116.37,116.35,0.0584209]
[1743762729423,0.06112181,116.37,116.35,0.0584209]
[1743762729718,8.5947,116.36,116.35,0.0584209]
[1743762730419,0.06112181,116.37,116.35,0.0584209]
[1743762730819,8.5947,116.36,116.35,0.0584209]
[1743762731420,8.5976,116.32,116.31,329.62]
[1743762731721,4.7015,116.36,116.26,329.72]
[1743762731922,8.5982,116.32,116.29,8.5994]
[1743762732519,54.6532,116.36,116.28,24.65400153]
[1743762732813,0.0660168,116.32,116.29,4.54430344]
[1743762733021,8.6636168,116.32,116.29,4.5156]
[1743762733319,8.6636168,116.32,116.29,4.54430344]
[1743762733520,0.0660168,116.32,116.3,8.5991]
[1743762733817,0.0660168,116.32,116.29,0.02870344]
[1743762734116,0.0660168,116.32,116.3,40.92]
[1743762734321,30.59,116.38,116.3,65.57400153]
[1743762734515,39.1835,116.38,116.35,8.5949]
[1743762734720,30.59,116.38,116.36,40.96]
[1743762734917,30.59,116.38,116.27,17.2014]
[1743762734918,30.59,116.38,116.29,24.65400153]
[1743762735219,30.59,116.38,116.31,40.98]
[1743762735422,30.59,116.38,116.31,65.63400153]
[1743762735615,0.05992081,116.35,116.33,24.65400153]
[1743762735815,30.59,116.38,116.36,8.594]
[1743762736115,55.24400153,116.38,116.27,24.76440153]
[1743762736313,8.5975,116.33,116.28,41.2]
[1743762736514,8.9032,116.37,116.27,0.1104]
[1743762736714,4.7293,116.36,116.28,41.22]
[1743762736916,0.05845179,116.33,116.31,0.05486361]
[1743762738025,0.05845179,116.33,116.31,8.65316361]
[1743762738418,0.05845179,116.33,116.31,0.05486361]
[1743762738616,0.05845179,116.33,116.31,8.65286361]
[1743762738817,0.05845179,116.33,116.31,0.05486361]
[1743762739217,8.5976,116.32,116.28,41.08]
[1743762739422,29.38330153,116.36,116.28,41.08]
[1743762739623,4.7293,116.36,116.28,41.08]
[1743762739823,30.59,116.38,116.32,24.65400153]
[1743762740022,30.59,116.38,116.33,41.46]
[1743762740217,8.5941,116.37,116.34,8.5956]
[1743762740420,0.06017156,116.37,116.36,24.65400153]
[1743762740724,0.06017156,116.37,116.36,8.5947]
[1743762740927,30.59,116.38,116.36,24.65400153]
[1743762741119,1.157e-05,116.38,116.37,41.62]
[1743762741324,4.6736,116.43,116.37,41.62]
[1743762741524,4.6908,116.44,116.38,24.65400153]
[1743762741927,4.5325,116.46,116.4,24.65400153]
[1743762742223,3.352e-05,116.42,116.41,41.68]
[1743762742419,8.5861,116.48,116.41,66.33400153]
[1743762742731,13.7393,116.51,116.41,66.33400153]
[1743762742926,8.5878,116.46,116.41,66.33400153]
[1743762743427,0.05491346,116.45,116.43,8.5891]
[1743762743828,0.05491346,116.45,116.44,8.5888]
[1743762744123,11.22,116.5,116.44,24.65400153]
[1743762744323,11.22,116.5,116.42,8.63512861]
[1743762744324,11.22,116.5,116.46,24.65400153]
[1743762744527,11.22,116.5,116.45,41.54]
[1743762744919,11.22,116.5,116.45,50.1277]
[1743762745123,0.05903432,116.49,116.46,0.05675869]
[1743762745324,9.25743432,116.49,116.46,0.05675869]
[1743762745525,8.5869,116.47,116.46,0.05675869]
[1743762745719,8.5869,116.47,116.4,354.47400153]
[1743762746028,13.7439,116.49,116.41,41.46]
[1743762747029,0.05483112,116.46,116.44,0.06296796]
[1743762747229,11.22,116.5,116.45,41.46]
[1743762747628,8.5841,116.51,116.47,8.5861]
[1743762747826,4.6343,116.54,116.46,24.65400153]
[1743762748021,4.6343,116.54,116.48,24.65400153]
[1743762748222,8.5827,116.53,116.49,41.5]
[1743762748425,4.6343,116.54,116.49,41.5]
[1743762748621,0.05795358,116.52,116.5,0.05480483]
[1743762749127,8.5881,116.45,116.4,354.47400153]
[1743762749327,8.5881,116.45,116.41,41.54]
[1743762749929,8.5881,116.45,116.41,50.1305]
[1743762750126,35.87400153,116.49,116.41,41.54]
[1743762750326,0.05460015,116.44,116.42,0.05728242]
[1743762750522,8.64370015,116.44,116.42,0.05728242]
[1743762751126,8.5895,116.43,116.42,0.05728242]
[1743762751330,0.05460015,116.44,116.35,329.66]
[1743762751626,8.5928,116.39,116.35,50.0148]
[1743762751826,4.4426,116.42,116.35,41.42]
[1743762752232,8.5898,116.43,116.36,24.65400153]
[1743762752423,0.05750797,116.4,116.37,0.06441954]
[1743762752826,0.05750797,116.4,116.37,0.06119839]
[1743762753033,0.05750797,116.4,116.38,24.65400153]
[1743762753233,0.00740797,116.4,116.39,50.0324]
[1743762753430,0.00740797,116.4,116.39,41.44]
[1743762753930,4.4426,116.45,116.43,8.5895]
[1743762754133,4.4471,116.47,116.4,24.65400153]
[1743762754332,11.22,116.49,116.43,41.54]
[1743762754535,19.8052,116.49,116.46,8.5868]
[1743762754831,4.6834,116.5,116.44,41.54]
[1743762755225,0.06198636,116.48,116.46,0.0579191]
[1743762755426,0.06198636,116.48,116.41,41.62]
[1743762755625,8.5879,116.46,116.42,8.5899]
[1743762755823,24.65400153,116.49,116.42,8.5899]
[1743762756027,24.65400153,116.49,116.41,41.62]
[1743762756226,24.65400153,116.47,116.41,50.2105]
[1743762756424,24.65400153,116.47,116.38,41.58]
[1743762756628,24.70960109,116.45,116.39,8.5923]
[1743762756826,13.5359,116.44,116.36,66.25400153]
[1743762757432,66.31400153,116.51,116.4,24.65400153]
[1743762757632,4.5977,116.49,116.42,24.65400153]
[1743762757834,4.5977,116.49,116.43,41.66]
[1743762758033,0.05663742,116.47,116.44,0.06409795]
[1743762758225,8.64353742,116.47,116.44,0.06409795]
[1743762758426,0.05663742,116.47,116.44,0.06409795]
[1743762758832,8.5883,116.45,116.4,8.591]
[1743762759134,24.65400153,116.48,116.39,371.34]
[1743762759436,24.65400153,116.48,116.41,8.5904]
[1743762759437,8.5884,116.45,116.41,8.5904]
[1743762759637,24.65400153,116.48,116.41,8.5904]
[1743762759837,8.5884,116.45,116.43,0.04019969]
[1743762760232,0.06572037,116.46,116.43,0.04019969]
[1743762760436,24.7197219,116.46,116.39,329.66]
[1743762760634,24.65400153,116.44,116.35,42.06]
[1743762760837,9.2103,116.43,116.37,8.5936]
[1743762761333,9.2103,116.43,116.38,8.593]
[1743762761639,0.05871458,116.41,116.36,24.65400153]
[1743762762241,0.05871458,116.41,116.38,24.65400153]
[1743762762438,0.05871458,116.41,116.39,41.98]
[1743762763239,0.05871458,116.41,116.39,50.572]
[1743762763640,0.05871458,116.41,116.39,41.98]
[1743762764039,0.05871458,116.41,116.34,354.33400153]
[1743762764339,66.57400153,116.44,116.36,8.5943]
[1743762764542,0.05894291,116.39,116.34,371.6]
[1743762764839,0.05894291,116.39,116.32,66.53400153]
[1743762765040,9.3011,116.41,116.32,66.53400153]
[1743762765236,0.06392799,116.37,116.36,8.5942]
[1743762765441,9.3011,116.41,116.34,24.65400153]
[1743762765636,0.05791322,116.38,116.34,24.65400153]
[1743762765940,0.05791322,116.38,116.37,8.5939]
[1743762766235,0.05791322,116.38,116.34,66.57400153]
[1743762766438,0.05791322,116.38,116.33,41.92]
[1743762766739,4.3048,116.4,116.33,41.92]
[1743762766940,0.06372303,116.37,116.33,41.92]
[1743762767943,0.06372303,116.37,116.35,8.5949]
[1743762768141,0.06372303,116.37,116.33,41.92]
[1743762768336,24.65400153,116.48,116.36,24.65400153]
[1743762768541,4.6351,116.46,116.38,24.65400153]
[1743762768844,29.28910153,116.46,116.37,41.86]
[1743762769343,24.65400153,116.4,116.31,41.96]
[1743762769540,24.65400153,116.4,116.32,8.5973]
[1743762769541,8.5965,116.34,116.32,8.5973]
[1743762769740,13.672,116.39,116.34,0.05914682]
[1743762770046,8.65988332,116.34,116.31,8.598]
[1743762770244,8.5967,116.34,116.31,8.598]
[1743762770440,0.06397047,116.34,116.31,0.05739494]
[1743762770744,8.5976,116.32,116.31,0.05739494]
[1743762771536,8.5971,116.33,116.31,0.05739494]
[1743762771735,0.06397047,116.34,116.31,0.05739494]
[1743762771937,24.717972,116.34,116.25,24.65400153]
[1743762772138,24.65400153,116.32,116.22,24.65400153]
[1743762772536,24.65400153,116.32,116.21,42.02]
[1743762772940,24.65400153,116.32,116.24,8.6034]
[1743762773140,0.06017994,116.28,116.22,24.65400153]
[1743762773346,0.06017994,116.28,116.24,24.65400153]
[1743762773546,0.06017994,116.28,116.27,8.6013]
[1743762773748,51.1462,116.33,116.27,8.6013]
[1743762774045,0.05801224,116.29,116.28,8.6006]
[1743762774245,9.2462,116.33,116.28,8.6006]
[1743762774441,0.06194527,116.3,116.26,24.65400153]
[1743762774645,0.06194527,116.3,116.29,8.5998]
[1743762774843,0.06194527,116.3,116.26,24.65400153]
[1743762775049,0.06194527,116.3,116.29,8.5998]
[1743762775447,0.06194527,116.3,116.26,24.65400153]
[1743762775642,0.06194527,116.3,116.28,8.6002]
[1743762775849,17.1794,116.43,116.29,41.96]
[1743762776045,8.5937,116.38,116.35,8.5953]
[1743762776245,4.4636,116.39,116.34,24.65400153]
[1743762776441,6.31251788,116.42,116.36,24.65400153]
[1743762776649,6.31251788,116.42,116.37,41.98]
[1743762776849,1.71806545,116.41,116.37,41.98]
[1743762777047,1.77718663,116.41,116.38,0.05984836]
[1743762778251,8.5923,116.4,116.38,0.05984836]
[1743762778452,1.77718663,116.41,116.38,0.05984836]
[1743762778651,8.5924,116.39,116.38,0.05984836]
[1743762779051,0.05912118,116.41,116.38,0.05984836]
[1743762779853,13.7175,116.49,116.4,24.65400153]
[1743762780148,1.71703296,116.48,116.41,41.96]
[1743762780354,8.5884,116.45,116.42,8.5898]
[1743762780551,1.71703296,116.48,116.42,24.65400153]
[1743762781049,0.06349542,116.46,116.44,0.06398384]
[1743762781252,0.06349542,116.46,116.45,41.96]
[1743762781452,0.06349542,116.46,116.45,50.5479]
[1743762781644,0.06349542,116.46,116.45,41.96]
[1743762782051,1.71703296,116.48,116.45,41.96]
[1743762782255,1.71703296,116.48,116.46,24.65400153]
[1743762782452,1.71703296,116.48,116.45,41.96]
[1743762782653,10.30323296,116.48,116.45,41.96]
[1743762782849,1.71703296,116.48,116.44,0.06398384]
[1743762783254,8.5874,116.46,116.44,0.06398384]
[1743762783654,0.06525082,116.47,116.44,0.06398384]
[1743762784448,0.06525082,116.47,116.44,48.38219455]
[1743762784649,0.06525082,116.47,116.44,0.06398384]
[1743762785354,0.06525082,116.47,116.44,39.79399455]
[1743762785655,8.65215082,116.47,116.44,48.38239455]
[1743762786059,0.06525082,116.47,116.44,39.79399455]
[1743762787056,0.06525082,116.47,116.45,8.5874]
[1743762787255,0.06525082,116.47,116.46,39.73001071]
[1743762787655,4.5155,116.51,116.46,39.73001071]
[1743762787858,4.3338,116.54,116.48,39.73001071]
[1743762788154,8.5858,116.48,116.47,41.74]
[1743762788353,50.8205,116.53,116.43,41.76]
[1743762788552,9.0605,116.53,116.44,39.73001071]
[1743762788946,0.05587122,116.5,116.47,0.06532414]
[1743762789553,8.5858,116.48,116.47,0.06532414]
[1743762789760,0.05587122,116.5,116.45,41.86]
[1743762789952,81.57001071,116.52,116.45,41.86]
[1743762790152,8.5873,116.46,116.45,41.86]
[1743762790458,81.57001071,116.52,116.45,41.86]
[1743762790652,8.5871,116.47,116.45,41.86]
[1743762790952,0.06540535,116.47,116.41,39.73001071]
[1743762791153,0.06540535,116.47,116.44,8.5882]
[1743762791359,0.06540535,116.47,116.41,39.73001071]
[1743762791859,8.5876,116.46,116.43,8.5892]
[1743762792052,8.5876,116.46,116.43,8.64463291]
[1743762792260,0.06540535,116.47,116.43,0.05543291]
[1743762792751,4.73060535,116.47,116.43,0.05543291]
[1743762793359,8.5879,116.46,116.43,8.64453291]
[1743762793658,4.73060535,116.47,116.43,0.05543291]
[1743762793959,8.5884,116.45,116.43,0.05543291]
[1743762794462,4.73060535,116.47,116.43,0.05543291]
[1743762795158,4.6263,116.46,116.43,0.05543291]
[1743762795557,8.592,116.4,116.37,81.33001071]
[1743762795757,4.6263,116.46,116.37,81.33001071]
[1743762796157,8.5898,116.43,116.37,81.33001071]
[1743762796366,9.3422,116.46,116.37,81.33001071]
[1743762796659,0.05511429,116.43,116.4,0.06429851]
[1743762796855,0.05511429,116.43,116.41,39.73001071]
[1743762797052,41.56,116.51,116.41,81.29001071]
[1743762797254,8.5869,116.47,116.43,39.73001071]
[1743762797653,39.73001071,116.5,116.41,41.56]
[1743762797964,41.56,116.51,116.41,41.56]
[1743762798167,0.06514034,116.47,116.44,0.05931146]
[1743762798360,0.06514034,116.47,116.41,371.22]
[1743762798661,0.06514034,116.47,116.44,0.06446321]
[1743762798965,8.588,116.45,116.44,0.06446321]
[1743762800466,0.06514034,116.47,116.44,0.06446321]
[1743762800765,0.06514034,116.47,116.44,8.65276321]
[1743762800960,0.06514034,116.47,116.44,0.06446321]
[1743762801866,0.06514034,116.47,116.44,8.65276321]
[1743762802066,0.06514034,116.47,116.44,0.06446321]
[1743762803165,8.65204034,116.47,116.44,0.06446321]
[1743762803667,8.65204034,116.47,116.44,8.65276321]
[1743762803865,0.06514034,116.47,116.44,8.65276321]
[1743762804066,0.06514034,116.47,116.44,0.06446321]
[1743762804778,0.06514034,116.47,116.45,8.5876]
[1743762804968,0.00842119,116.47,116.46,24.45248708]
[1743762805165,4.7159,116.52,116.46,24.45248708]
[1743762805363,8.5837,116.51,116.46,24.45248708]
[1743762805564,4.5917,116.53,116.48,24.45248708]
[1743762805960,8.5835,116.52,116.49,8.5845]
[1743762806371,8.64642477,116.52,116.49,8.64614937]
[1743762806570,8.5836,116.51,116.49,8.64614937]
[1743762807273,0.06292477,116.52,116.51,8.5836]
[1743762807463,0.06292477,116.52,116.49,41.40164937]
[1743762807969,8.5841,116.51,116.49,41.40164937]
[1743762808269,8.64612477,116.52,116.49,74.43873645]
[1743762808470,8.64612477,116.52,116.49,65.85413645]
[1743762808670,0.06292477,116.52,116.49,65.85413645]
[1743762808969,0.06292477,116.52,116.5,8.5843]
[1743762809173,0.06292477,116.52,116.49,41.40164937]
[1743762810569,0.06292477,116.52,116.51,8.5836]
[1743762810973,0.06292477,116.52,116.49,41.40164937]
[1743762811167,0.06292477,116.52,116.5,8.5837]
[1743762811363,0.06292477,116.52,116.49,65.85413645]
[1743762812670,0.06292477,116.52,116.5,8.5836]
[1743762813076,0.06292477,116.52,116.5,24.45248708]
[1743762813275,0.06292477,116.52,116.51,8.5836]
[1743762813478,0.06292477,116.52,116.5,24.45248708]
[1743762813674,0.06292477,116.52,116.49,41.40164937]
[1743762813975,0.06292477,116.52,116.49,65.85413645]
[1743762815375,0.06292477,116.52,116.51,24.45248708]
[1743762815579,25.78,116.5,116.39,253.60243275]
[1743762815773,8.5914,116.41,116.39,253.60243275]
[1743762815971,41.72,116.43,116.39,253.60243275]
[1743762816774,24.45248708,116.41,116.35,353.8495954]
[1743762816968,8.5947,116.36,116.35,353.8495954]
[1743762817373,8.5947,116.36,116.35,340.6698954]
[1743762817577,8.5947,116.36,116.35,327.6720954]
[1743762817777,48.43376103,116.36,116.35,327.6720954]
[1743762818371,8.5954,116.35,116.34,0.06245394]
[1743762818576,0.06044769,116.37,116.34,0.06245394]
[1743762818881,8.5954,116.35,116.34,0.06245394]
[1743762820379,0.06044769,116.37,116.34,0.06245394]
[1743762820881,0.06044769,116.37,116.35,329.66]
[1743762821081,0.06044769,116.37,116.36,41.44]
[1743762822382,0.06044769,116.37,116.35,329.66]
[1743762822574,8.5947,116.36,116.35,329.66]
[1743762822772,0.06044769,116.37,116.35,329.66]
[1743762823775,0.06044769,116.37,116.36,8.5947]
[1743762823978,0.06044769,116.37,116.35,329.66]
[1743762825285,8.65464769,116.37,116.35,329.66]
[1743762825486,0.06044769,116.37,116.35,329.66]
[1743762826183,39.89950872,116.37,116.34,0.06245394]
[1743762826390,8.5983,116.32,116.3,329.7]
[1743762826579,39.83906103,116.35,116.28,4.4563]
[1743762826784,39.83906103,116.35,116.27,41.1]
[1743762826987,80.89906103,116.35,116.27,49.7012]
[1743762827285,39.83906103,116.33,116.27,41.1]
[1743762827486,0.0604602,116.32,116.26,4.5738]
[1743762827793,39.83906103,116.29,116.19,1.49629152]
[1743762827983,8.6025,116.26,116.23,8.6039]
[1743762828187,0.06350962,116.26,116.18,90.11546103]
[1743762828587,0.06017925,116.23,116.18,90.11546103]
[1743762828987,0.06017925,116.23,116.2,39.83906103]
[1743762829187,0.06017925,116.23,116.22,8.605]
[1743762829393,0.06017925,116.23,116.22,49.605]
[1743762829791,0.06017925,116.23,116.2,39.83906103]
[1743762829989,0.06017925,116.23,116.19,40.96]
[1743762830396,0.06017925,116.23,116.2,8.6063]
[1743762830692,0.06017925,116.23,116.18,9.2564]
[1743762830894,0.06017925,116.23,116.19,8.6069]
[1743762831093,0.06017925,116.23,116.18,89.99546103]
[1743762831994,0.06017925,116.23,116.22,8.605]
[1743762832191,40.8,116.3,116.22,40.8]
[1743762832395,39.83906103,116.29,116.22,40.8]
[1743762832593,39.83906103,116.27,116.19,40.82]
[1743762832897,40.92,116.26,116.19,40.82]
[1743762833291,0.05715466,116.24,116.21,0.06089597]
[1743762835897,0.05715466,116.24,116.2,39.83906103]
[1743762836089,0.05715466,116.24,116.2,44.52326103]
[1743762837401,0.05715466,116.24,116.19,40.82]
[1743762837597,8.6047,116.23,116.2,8.6061]
[1743762838094,0.05715466,116.24,116.19,40.82]
[1743762838295,8.6054,116.22,116.19,40.82]
[1743762838497,40.66,116.26,116.19,40.82]
[1743762838699,8.67143435,116.22,116.19,49.4267]
[1743762839103,0.06603435,116.22,116.19,40.82]
[1743762839399,8.6062,116.21,116.19,40.82]
[1743762839599,0.06603435,116.22,116.17,329.74]
[1743762840191,0.06603435,116.22,116.2,8.6061]
[1743762840397,0.06603435,116.22,116.17,329.74]
[1743762841302,8.607,116.2,116.17,338.3484]
[1743762841499,13.7837,116.25,116.17,329.74]
[1743762841803,0.06542646,116.2,116.17,329.74]
[1743762841998,0.06542646,116.2,116.19,8.6072]
[1743762842201,0.06542646,116.2,116.17,329.74]
[1743762842595,8.67192646,116.2,116.17,329.74]
[1743762843002,8.67192646,116.2,116.18,8.6074]
[1743762843003,0.06542646,116.2,116.18,8.6074]
[1743762843201,0.06542646,116.2,116.17,329.74]
[1743762843398,0.06542646,116.2,116.17,369.57906103]
[1743762843602,8.6032,116.25,116.22,8.6043]
[1743762844306,44.24626103,116.28,116.22,8.6043]
[1743762844703,8.6017,116.27,116.2,40.66]
[1743762844900,0.05849144,116.26,116.24,0.0566316]
[1743762845301,8.6028,116.25,116.24,0.0566316]
[1743762845903,8.66089144,116.26,116.24,0.0566316]
[1743762846105,0.05849144,116.26,116.24,0.0566316]
[1743762846999,0.05849144,116.26,116.25,8.6028]
[1743762848002,0.05849144,116.26,116.24,0.0566316]
[1743762848202,8.6028,116.25,116.24,0.0566316]
[1743762849307,8.6028,116.25,116.24,3.16e-05]
[1743762849510,8.605,116.22,116.18,40.64]
[1743762849706,13.2872,116.26,116.2,8.6061]
[1743762850107,8.6049,116.23,116.2,8.6061]
[1743762850509,8.66307039,116.23,116.2,8.63301509]
[1743762851108,8.605,116.22,116.2,8.63301509]
[1743762851305,0.05817039,116.23,116.2,8.63301509]
[1743762851507,0.05817039,116.23,116.2,0.02691509]
[1743762851704,8.6054,116.22,116.2,0.02691509]
[1743762852106,8.6054,116.22,116.2,8.63301509]
[1743762852512,0.05817039,116.23,116.2,0.02691509]
[1743762853011,8.6057,116.21,116.2,0.02691509]
[1743762853310,0.05817039,116.23,116.17,8.6083]
[1743762853511,8.6077,116.19,116.14,53.8687]
[1743762853714,8.6077,116.19,116.16,8.6087]
[1743762854006,40.66,116.2,116.13,330.24]
[1743762854200,40.66,116.2,116.12,40.64]
[1743762854406,40.66,116.2,116.13,8.6116]
[1743762854609,8.6095,116.16,116.13,8.6116]
[1743762855110,24.6348815,116.17,116.09,9.2299]
[1743762855317,4.6779,116.16,116.09,49.8299]
[1743762855717,0.05435623,116.14,116.09,49.8299]
[1743762856808,0.05435623,116.14,116.11,8.6128]
[1743762857011,0.05435623,116.14,116.09,49.8299]
[1743762858310,0.05435623,116.14,116.11,8.6126]
[1743762858311,8.66565623,116.14,116.11,8.6126]
[1743762858513,0.05435623,116.14,116.09,49.8299]
[1743762859012,8.66555623,116.14,116.11,8.6127]
[1743762859809,0.05435623,116.14,116.1,39.96888869]
[1743762860113,5.46423845,116.13,116.11,4.5358]
[1743762860319,134.11850943,116.14,116.11,4.5358]
[1743762860514,118.65890943,116.14,116.12,39.96888869]
[1743762860712,66.90750943,116.14,116.13,49.1117]
[1743762861617,11.17201276,116.16,116.15,8.6102]
[1743762861815,11.17201276,116.16,116.13,40.5]
[1743762862120,11.17201276,116.16,116.13,40.55435623]
[1743762862718,11.17201276,116.16,116.14,8.6106]
[1743762862918,11.17201276,116.16,116.13,40.55435623]
[1743762863418,11.17201276,116.16,116.14,8.6106]
[1743762863613,8.6748799,116.17,116.14,8.6106]
[1743762863814,0.0657799,116.17,116.14,8.6106]
[1743762864014,0.0657799,116.17,116.15,8.6096]
[1743762864218,0.0657799,116.17,116.13,40.55435623]
[1743762865015,49.92378824,116.16,116.07,330.24]
[1743762865313,49.92378824,116.14,116.07,330.24]
[1743762865618,8.6123,116.13,116.1,8.6136]
[1743762865817,9.0589,116.15,116.1,8.6136]
[1743762866017,8.6145,116.1,116.08,40.66]
[1743762866217,49.98367405,116.14,116.08,40.66]
[1743762866513,54.60218824,116.14,116.07,338.8558]
[1743762866717,0.06464472,116.12,116.07,338.8558]
[1743762867119,0.06464472,116.12,116.07,330.24]
[1743762867416,49.98843296,116.12,116.03,8.7015]
[1743762867714,49.92378824,116.12,116.06,8.6168]
[1743762868016,6.866e-05,116.09,116.08,49.92378824]
[1743762868223,44.68805106,116.18,116.09,13.7347]
[1743762868518,49.92378824,116.16,116.08,371.36]
[1743762868718,49.92378824,116.16,116.09,8.6144]
[1743762868916,44.68805106,116.14,116.08,371.36]
[1743762869218,44.68805106,116.14,116.1,49.92378824]
[1743762869418,0.06184939,116.12,116.11,8.6132]
[1743762869612,44.68805106,116.14,116.1,49.98517235]
[1743762869815,55.92805106,116.14,116.12,49.92378824]
[1743762870009,55.92805106,116.14,116.13,49.5317]
[1743762871016,11.24,116.14,116.13,49.5317]
[1743762871216,11.24,116.14,116.13,40.92]
[1743762871416,11.24,116.14,116.12,0.06007037]
[1743762871620,8.6117,116.13,116.12,0.06007037]
[1743762873719,19.8513,116.14,116.12,0.06007037]
[1743762873920,19.8513,116.14,116.09,40.8]
[1743762874125,11.24,116.14,116.09,40.8]
[1743762874326,11.24,116.14,116.1,8.6136]
[1743762874525,11.24,116.14,116.09,40.8]
[1743762874725,19.8513,116.14,116.11,8.6127]
[1743762874928,11.24,116.14,116.09,40.8]
[1743762875123,11.30267905,116.14,116.11,0.05683387]
[1743762875324,8.6124,116.12,116.11,0.05683387]
[1743762875824,8.6151,116.09,116.06,8.6166]
[1743762876129,9.1403,116.13,116.05,49.5314]
[1743762876329,51.82,116.14,116.05,49.5314]
[1743762876330,8.613,116.12,116.06,30.75250385]
[1743762876725,11.24,116.14,116.06,30.75250385]
[1743762877028,0.06061908,116.11,116.08,30.75250385]
[1743762877228,11.24,116.14,116.1,30.75250385]
[1743762877523,8.612,116.13,116.11,8.6127]
[1743762877718,8.612,116.13,116.09,371.26]
[1743762877719,11.24,116.14,116.09,371.26]
[1743762878124,11.24,116.14,116.05,8.9514]
[1743762878321,0.05593238,116.13,116.1,0.06137372]
[1743762878521,11.24,116.14,116.1,0.06137372]
[1743762878722,0.06053211,116.13,116.1,0.06137372]
[1743762879129,0.06053211,116.13,116.1,30.81387757]
[1743762879327,15.74321276,116.2,116.12,30.75250385]
[1743762879520,15.74321276,116.2,116.13,41.6]
[1743762879719,8.6084,116.18,116.13,41.6]